bitfinex-derivatives/quotes_ETHF0:USTF0_20250708
["timestamp","ask_amount","ask_price","bid_price","bid_amount"]
[1751997575989,0.76383,2618.4,2618.3,0.7638]
[1751997576189,1.42673,2618.4,2618.3,1.1661]
[1751997576391,0.6629,2618.4,2618.3,1.1661]
[1751997576592,5.28615901,2618.7,2618.4,0.76376]
[1751997576792,3.17059589,2618.7,2618.3,1.7352]
[1751997577093,3.93433589,2618.7,2618.6,0.76373]
[1751997577295,0.76379,2618.5,2618.4,0.76377]
[1751997578296,0.51545965,2618.5,2618.4,0.76377]
[1751997578900,0.76379,2618.5,2618.4,0.76377]
[1751997579297,1.90927,2618.7,2618.4,0.76377]
[1751997579496,1.90927,2618.7,2618.3,2.499]
[1751997579497,0.76379,2618.4,2618.3,2.499]
[1751997579803,0.76376,2618.6,2618.5,0.76373]
[1751997580006,1.42666,2618.6,2618.5,1.42733]
[1751997581303,1.42666,2618.6,2618.5,0.76373]
[1751997581604,1.42666,2618.6,2618.5,1.42733]
[1751997581900,0.6629,2618.6,2618.2,3.2078]
[1751997582100,7.3697815,2618.4,2618.3,1.70400247]
[1751997582300,0.76391,2618.0,2617.9,5.46373191]
[1751997582494,0.76391,2618.0,2617.9,4.91763803]
[1751997582495,1.42681,2618.0,2617.9,4.91763803]
[1751997582702,2.41031,2618.0,2617.9,1.70983803]
[1751997583102,3.79711,2618.0,2617.9,3.97550106]
[1751997583401,3.79711,2618.0,2617.9,5.09373589]
[1751997583594,3.79711,2618.0,2617.9,1.70983803]
[1751997583798,3.79711,2618.0,2617.9,5.09373589]
[1751997584305,3.79711,2618.0,2617.9,1.70983803]
[1751997584506,3.79711,2618.0,2617.9,5.09373589]
[1751997584900,3.79711,2618.0,2617.9,1.70983803]
[1751997585300,3.79711,2618.0,2617.9,5.09373589]
[1751997586302,3.79711,2618.0,2617.9,1.70983803]
[1751997586702,1.42681,2618.0,2617.9,2.37343803]
[1751997586903,0.6629,2618.0,2617.9,2.47377803]
[1751997587307,1.42681,2618.0,2617.9,1.70983803]
[1751997587504,2.41031,2618.0,2617.9,1.70983803]
[1751997588404,0.764,2617.7,2617.6,1.68451125]
[1751997588605,1.91016,2617.5,2617.0,3.2078]
[1751997588803,0.76417,2617.1,2617.0,3.97196]
[1751997588999,0.39151333,2617.1,2617.0,3.97196]
[1751997589307,0.39151333,2617.1,2617.0,3.972]
[1751997591409,1.9103,2617.3,2616.9,0.7642]
[1751997591410,0.76422,2617.0,2616.9,0.7642]
[1751997591902,0.76422,2617.0,2616.9,3.97201]
[1751997591903,0.7642,2617.0,2616.9,3.97201]
[1751997592299,5.11781,2617.7,2617.0,1.91045]
[1751997592502,5.11781,2617.7,2617.3,3.0441189]
[1751997592503,0.76411,2617.4,2617.3,3.0441189]
[1751997592908,1.3105,2617.6,2617.3,3.0441189]
[1751997593209,0.76404,2617.6,2617.5,0.76402]
[1751997593409,0.51562665,2617.6,2617.5,0.76402]
[1751997593602,0.51562665,2617.6,2617.5,3.0440389]
[1751997594604,0.76402,2617.7,2617.6,0.76401]
[1751997594804,0.76402,2617.7,2617.6,1.41231]
[1751997596001,1.43172,2617.7,2617.6,1.41231]
[1751997596207,0.76402,2617.7,2617.6,1.41231]
[1751997596509,1.43172,2617.7,2617.6,1.41231]
[1751997596807,0.6677,2617.7,2617.6,1.41231]
[1751997597005,0.76397,2617.8,2617.7,0.76396]
[1751997597202,0.76397,2617.8,2617.7,1.41226]
[1751997597400,0.76397,2617.8,2617.7,2.38236]
[1751997597610,0.76396,2617.9,2617.8,0.76395]
[1751997597815,0.76393,2618.0,2617.9,0.76392]
[1751997598006,0.76391,2618.0,2617.9,0.6483]
[1751997598407,1.43161,2618.0,2617.9,0.6483]
[1751997599005,1.43161,2618.0,2617.6,4.91855834]
[1751997599006,0.764,2617.7,2617.6,2.47476834]
[1751997599202,0.764,2617.7,2617.5,1.21399103]
[1751997599411,0.76402,2617.6,2617.5,0.02591742]
[1751997599810,0.76402,2617.6,2617.5,0.67421742]
[1751997600008,0.76402,2617.6,2617.5,1.41235]
[1751997600311,1.43172,2617.6,2617.5,0.6483]
[1751997600908,5.11762,2618.0,2617.6,0.76402]
[1751997601211,0.76399,2617.8,2617.7,0.76397]
[1751997601406,0.76395,2617.9,2617.8,0.76393]
[1751997601602,0.76391,2618.1,2618.0,0.76389]
[1751997602009,3.2078,2618.3,2617.9,1.90985]
[1751997602210,0.76378,2618.5,2618.4,0.76379]
[1751997602405,0.76374,2618.6,2618.5,0.76374]
[1751997602716,3.2078,2618.7,2618.6,0.76373]
[1751997603713,0.76374,2618.6,2618.5,0.76374]
[1751997603910,3.2078,2618.7,2618.6,0.76373]
[1751997604413,3.97152,2618.7,2618.6,0.9701]
[1751997604711,3.2078,2618.7,2618.6,1.41203]
[1751997605103,3.2078,2618.7,2617.8,0.54187434]
[1751997605104,3.81868,2618.6,2617.8,0.54187434]
[1751997605302,0.76405,2617.5,2617.4,3.2078]
[1751997606006,0.76404,2617.6,2617.5,0.76405]
[1751997606209,1.90949,2618.4,2617.8,0.76397]
[1751997606412,7.41064,2618.5,2618.0,0.7639]
[1751997606603,0.76389,2618.1,2618.0,0.76391]
[1751997606808,4.2267,2618.5,2617.8,0.6354]
[1751997607007,0.76392,2618.0,2617.8,1.9958]
[1751997607307,4.2267,2618.5,2618.3,0.76382]
[1751997607502,4.2267,2618.5,2618.4,0.76379]
[1751997607702,0.76374,2618.6,2618.5,0.76375]
[1751997608314,0.7637,2618.7,2618.6,0.76372]
[1751997608608,5.5012,2618.9,2618.4,3.2078]
[1751997608609,0.76373,2618.6,2618.5,1.39914]
[1751997609211,0.76394,2617.9,2617.8,3.41614877]
[1751997609416,0.76414,2617.2,2617.1,0.76415]
[1751997609720,6.99028148,2617.9,2616.8,1.91065]
[1751997609721,3.2078,2617.5,2616.8,1.91065]
[1751997609913,3.82042,2617.4,2616.8,1.3375]
[1751997610213,5.11797,2617.5,2616.8,1.3375]
[1751997610414,0.76418,2617.1,2617.0,0.76419]
[1751997610610,0.76416,2617.2,2616.8,1.3375]
[1751997610805,0.76413,2617.3,2616.8,1.3375]
[1751997611008,0.76414,2617.2,2616.9,3.2078]
[1751997611415,0.76413,2617.3,2617.1,0.76417]
[1751997611817,0.76414,2617.2,2617.0,0.76418]
[1751997612016,0.76414,2617.2,2617.1,0.76417]
[1751997612216,0.7641,2617.4,2616.9,3.2078]
[1751997612515,3.97187,2617.5,2617.0,3.1725]
[1751997612816,3.2078,2617.5,2617.4,0.76408]
[1751997613021,0.7642,2617.0,2616.9,3.2078]
[1751997613317,0.76425,2616.9,2616.8,0.76425]
[1751997613521,0.76421,2617.0,2616.9,0.76422]
[1751997613909,3.2078,2617.1,2616.7,1.45617]
[1751997614112,3.2078,2617.1,2616.7,0.6919]
[1751997614312,0.76424,2616.9,2616.8,0.76425]
[1751997614817,0.76421,2617.0,2616.9,0.76422]
[1751997615219,0.76423,2616.9,2616.8,0.76424]
[1751997615517,0.76424,2616.9,2616.8,0.76424]
[1751997616018,0.76422,2617.0,2616.9,0.76422]
[1751997616215,0.76423,2616.9,2616.8,0.76424]
[1751997617020,0.76422,2617.0,2616.9,0.76422]
[1751997618024,0.76424,2616.9,2616.8,0.76424]
[1751997618424,0.76422,2617.0,2616.9,0.76421]
[1751997619126,0.76424,2616.9,2616.8,0.76424]
[1751997619326,0.76422,2617.0,2616.9,0.76421]
[1751997619524,3.2078,2617.1,2617.0,0.7642]
[1751997619525,0.7642,2617.1,2617.0,0.7642]
[1751997620022,3.2078,2617.4,2617.3,0.76411]
[1751997620222,1.90994,2617.8,2617.5,0.76404]
[1751997620223,0.76405,2617.6,2617.5,0.76404]
[1751997620424,0.76408,2617.5,2617.4,0.76407]
[1751997621526,0.76407,2617.5,2617.4,0.76406]
[1751997621727,3.2078,2617.7,2617.3,1.91029]
[1751997622028,3.97179,2617.7,2617.6,0.76402]
[1751997622725,0.76411,2617.3,2617.2,0.689]
[1751997623029,0.76411,2617.3,2617.2,1.45312]
[1751997623624,0.76418,2617.2,2616.8,7.41644]
[1751997623828,1.2838,2617.3,2616.8,6.1948]
[1751997624028,0.76421,2617.1,2617.0,0.76418]
[1751997624734,3.97201,2617.1,2617.0,0.76418]
[1751997625239,3.2078,2617.1,2617.0,0.76418]
[1751997625935,0.76416,2617.2,2617.1,0.76417]
[1751997626327,0.76419,2617.1,2617.0,0.76418]
[1751997626538,3.2078,2617.1,2617.0,0.76418]
[1751997627034,3.2078,2617.4,2617.2,0.76411]
[1751997627226,0.76412,2617.3,2617.0,1.91049]
[1751997627427,0.76416,2617.2,2617.1,0.76415]
[1751997627627,3.2078,2617.4,2617.0,31.1365]
[1751997627831,3.97192,2617.4,2617.3,0.76411]
[1751997628038,0.76405,2617.6,2617.5,0.76405]
[1751997628437,0.76408,2617.4,2617.3,1.42409]
[1751997629643,3.97188,2617.4,2617.3,1.42409]
[1751997629832,3.24384503,2617.4,2617.3,2.69375824]
[1751997630033,4.00792503,2617.4,2617.3,1.25716824]
[1751997630343,3.24384503,2617.4,2617.3,2.69377824]
[1751997630534,2.58674503,2617.4,2617.3,2.69377824]
[1751997631239,2.58674503,2617.4,2617.3,2.69375002]
[1751997631440,3.97178,2617.8,2617.7,0.76399]
[1751997631635,4.62888,2617.8,2617.7,1.36113002]
[1751997631833,4.62888,2617.8,2617.7,2.03363002]
[1751997632039,4.62888,2617.8,2617.7,1.36113002]
[1751997632340,4.62888,2617.8,2617.7,0.59714002]
[1751997632537,5.63598,2617.8,2617.7,0.59714002]
[1751997633541,5.13914974,2617.8,2617.7,0.59714002]
[1751997634144,13.92163122,2617.8,2617.7,0.59714002]
[1751997636446,8.92163122,2617.8,2617.7,0.59714002]
[1751997636840,8.54090773,2617.8,2617.7,0.59714002]
[1751997637142,4.13204974,2617.8,2617.7,0.59714002]
[1751997637537,5.13914974,2617.8,2617.7,0.59714002]
[1751997637733,0.76402,2617.6,2617.5,0.76403]
[1751997637942,2.42822,2617.6,2617.5,0.59715877]
[1751997638344,2.42822,2617.6,2617.5,1.36120877]
[1751997638544,2.42822,2617.6,2617.5,0.59715877]
[1751997639339,2.42822,2617.6,2617.5,1.36120877]
[1751997639539,3.82971375,2617.6,2617.5,0.59715877]
[1751997639747,3.82971375,2617.6,2617.5,1.36120877]
[1751997640139,3.45708652,2617.6,2617.5,1.36120877]
[1751997640540,3.45784768,2617.6,2617.5,1.36120877]
[1751997640741,2.45074768,2617.6,2617.5,1.36120877]
[1751997641336,2.05935491,2617.6,2617.5,2.03370877]
[1751997641543,2.82337491,2617.6,2617.5,1.26965877]
[1751997641747,2.82337491,2617.6,2617.5,2.03370877]
[1751997641936,3.4286869,2618.1,2618.0,0.76391]
[1751997642141,3.4286869,2618.1,2618.0,1.36106877]
[1751997642142,0.7639,2618.1,2618.0,1.36106877]
[1751997642441,0.7639,2618.1,2618.0,0.59715877]
[1751997642647,4.9788,2618.1,2618.0,0.59715877]
[1751997642843,3.9717,2618.1,2618.0,1.36106877]
[1751997643340,3.9717,2618.1,2618.0,1.31595178]
[1751997643341,3.2078,2618.1,2618.0,1.31595178]
[1751997643537,0.76383,2618.3,2618.0,1.92184178]
[1751997643847,3.97161,2618.4,2618.3,0.76382]
[1751997644149,0.76381,2618.4,2618.3,0.55204178]
[1751997644341,0.76381,2618.4,2618.3,1.31586178]
[1751997644541,0.76381,2618.4,2618.3,0.55204178]
[1751997644542,3.97161,2618.4,2618.3,0.55204178]
[1751997644844,4.62871,2618.4,2618.3,1.22454178]
[1751997645542,4.62871,2618.4,2618.3,1.98836178]
[1751997645743,4.62871,2618.4,2618.3,0.55204178]
[1751997646141,4.62871,2618.4,2618.3,1.22454178]
[1751997647942,4.62871,2618.4,2618.3,1.98836178]
[1751997648146,4.62871,2618.4,2618.3,1.22454178]
[1751997648445,4.62871,2618.4,2618.3,1.98836178]
[1751997649042,4.62871,2618.4,2618.3,1.98370676]
[1751997649544,4.62871,2618.4,2618.3,1.21988676]
[1751997649747,3.81912,2618.3,2617.4,3.42275298]
[1751997649938,0.7642,2617.1,2617.0,0.76419]
[1751997650143,1.04864674,2617.1,2617.0,1.43669]
[1751997650642,0.7642,2617.0,2616.9,0.76421]
[1751997650838,0.28447674,2617.1,2616.6,3.52709]
[1751997650839,0.6445,2617.1,2616.7,0.76426]
[1751997651044,5.11821,2617.2,2616.6,0.6499]
[1751997651246,3.2078,2616.9,2616.7,29.041]
[1751997651544,3.2078,2616.9,2616.7,29.80526]
[1751997651545,0.76427,2616.8,2616.7,29.80526]
[1751997651745,0.76427,2616.8,2616.7,0.76426]
[1751997651947,0.76427,2616.8,2616.7,29.79126]
[1751997652345,3.97205,2616.9,2616.8,0.76426]
[1751997653646,0.76427,2616.8,2616.7,0.76428]
[1751997653840,0.76427,2616.8,2616.7,29.77128]
[1751997654741,0.76425,2616.9,2616.8,0.76425]
[1751997654942,0.76425,2616.9,2616.8,1.41885]
[1751997654943,1.40875,2616.9,2616.8,1.41885]
[1751997655146,1.40875,2616.9,2616.8,0.76425]
[1751997655345,1.40875,2616.9,2616.8,1.41885]
[1751997655545,0.76421,2617.0,2616.8,0.6546]
[1751997655744,0.6445,2616.9,2616.8,0.6546]
[1751997656244,0.76423,2616.9,2616.8,1.41884]
[1751997656443,1.40873,2616.9,2616.8,1.41884]
[1751997657250,0.76423,2616.9,2616.8,1.41884]
[1751997657548,0.76422,2617.0,2616.9,0.76421]
[1751997657742,1.40872,2617.0,2616.9,1.41881]
[1751997658949,1.40872,2617.0,2616.9,0.6546]
[1751997659245,1.40872,2617.0,2616.9,1.41883]
[1751997660249,0.76422,2617.0,2616.9,0.6546]
[1751997660448,0.76422,2617.0,2616.9,29.4806]
[1751997660650,1.40872,2617.0,2616.9,30.24483]
[1751997661447,1.40872,2617.0,2616.9,29.4806]
[1751997661951,0.76422,2617.0,2616.9,29.4806]
[1751997662151,1.40872,2617.0,2616.9,29.4546]
[1751997662452,0.76429,2616.7,2616.6,0.6499]
[1751997662752,1.40879,2616.7,2616.6,30.0695]
[1751997663150,1.40879,2616.7,2616.6,1.3045]
[1751997663354,0.76429,2616.7,2616.6,30.0675]
[1751997663553,1.40879,2616.7,2616.6,30.0675]
[1751997663855,0.6445,2616.7,2616.6,30.0675]
[1751997664050,1.40879,2616.7,2616.6,30.0675]
[1751997664557,1.40879,2616.7,2616.6,30.83182]
[1751997664752,1.40879,2616.7,2616.6,30.0675]
[1751997664953,0.76429,2616.7,2616.6,30.0675]
[1751997665549,0.76429,2616.7,2616.6,1.3045]
[1751997665748,1.40879,2616.7,2616.6,30.0245]
[1751997665950,0.76429,2616.7,2616.6,30.0245]
[1751997666150,1.40879,2616.7,2616.6,30.0245]
[1751997666347,0.76429,2616.7,2616.6,30.0245]
[1751997666657,1.91059,2616.9,2616.6,30.0245]
[1751997666658,6.12844,2617.1,2616.6,30.78879]
[1751997666954,0.76429,2616.7,2616.6,30.78879]
[1751997667357,7.38724,2617.1,2616.6,38.43485799]
[1751997667358,0.76427,2616.8,2616.6,38.43485799]
[1751997667552,0.76427,2616.8,2616.7,29.9293]
[1751997668153,0.76427,2616.8,2616.7,1.2713]
[1751997668350,0.76427,2616.8,2616.7,30.68659]
[1751997668555,0.76425,2616.9,2616.7,30.68659]
[1751997668956,0.76426,2616.8,2616.7,30.68659]
[1751997669453,0.76424,2616.9,2616.8,0.76425]
[1751997669654,0.76426,2616.8,2616.7,30.68657]
[1751997670358,1.40875,2616.9,2616.8,0.76426]
[1751997670561,0.76426,2616.8,2616.7,2.03559]
[1751997670759,0.76426,2616.8,2616.7,30.63259]
[1751997671360,0.76425,2616.9,2616.8,0.76425]
[1751997671558,1.40875,2616.9,2616.8,0.76425]
[1751997672363,1.40875,2616.9,2616.8,29.35525]
[1751997672555,1.40875,2616.9,2616.8,30.00985]
[1751997673157,1.40875,2616.9,2616.8,29.35525]
[1751997673358,1.40875,2616.9,2616.8,30.00985]
[1751997673762,1.40875,2616.9,2616.8,29.28225]
[1751997674262,0.76429,2616.7,2616.6,1.4142]
[1751997674465,0.76435,2616.6,2616.5,0.76432]
[1751997674759,1.40885,2616.6,2616.5,29.92592]
[1751997674966,1.40885,2616.6,2616.5,29.1616]
[1751997675167,1.40885,2616.6,2616.5,29.1546]
[1751997675861,2.41905,2616.6,2616.5,28.5]
[1751997676168,2.70605,2616.6,2616.5,29.91895]
[1751997676363,2.70605,2616.6,2616.5,29.26435]
[1751997676563,2.70605,2616.6,2616.5,0.76435]
[1751997676763,2.70605,2616.6,2616.5,29.90595]
[1751997676964,0.6445,2616.6,2616.5,33.30770799]
[1751997677163,0.76428,2616.8,2616.7,0.76429]
[1751997677464,0.76431,2616.7,2616.6,0.76428]
[1751997677662,0.76431,2616.7,2616.6,29.22528]
[1751997678368,0.76431,2616.7,2616.3,1.7002]
[1751997678369,1.91072,2616.7,2616.3,1.7002]
[1751997678571,0.7644,2616.3,2616.2,3.42275298]
[1751997678768,0.76443,2616.2,2616.1,3.42275298]
[1751997678966,5.33063,2616.2,2616.1,3.42275298]
[1751997679166,5.33063,2616.2,2616.1,4.07735298]
[1751997679365,5.33063,2616.2,2616.1,0.6546]
[1751997680770,0.76449,2616.0,2615.9,3.43629715]
[1751997680973,0.76449,2616.0,2615.9,31.84929715]
[1751997681372,2.46329,2616.0,2615.9,31.84929715]
[1751997681570,2.46329,2616.0,2615.9,28.413]
[1751997682265,0.76455,2615.8,2615.7,3.43629715]
[1751997682461,2.47635,2615.8,2615.7,3.43629715]
[1751997682663,0.6886,2615.8,2615.6,3.43629715]
[1751997682864,0.76448,2616.1,2616.0,0.76446]
[1751997683070,1.45308,2616.1,2616.0,4.80171799]
[1751997683464,0.6886,2616.1,2616.0,4.80171799]
[1751997684271,3.2078,2616.2,2616.1,0.76446]
[1751997684473,3.2078,2616.2,2616.1,1.39996]
[1751997684770,3.8964,2616.2,2616.1,0.76446]
[1751997684972,4.66083,2616.2,2616.1,29.11946]
[1751997685162,4.66083,2616.2,2616.1,29.75496]
[1751997685467,3.8964,2616.2,2616.1,29.75496]
[1751997685672,3.2078,2616.2,2616.1,29.75496]
[1751997686172,4.5950338,2616.2,2616.1,29.75496]
[1751997686870,3.8964,2616.2,2616.1,29.75496]
[1751997687370,4.66083,2616.2,2616.1,29.75496]
[1751997687568,5.68403,2616.2,2616.1,29.75496]
[1751997687773,4.66083,2616.2,2616.1,29.75496]
[1751997687974,4.66083,2616.2,2616.1,28.9585]
[1751997688273,0.76452,2615.9,2615.8,0.6645]
[1751997688477,2.47632,2615.9,2615.8,1.42905]
[1751997688773,3.2078,2616.2,2615.9,0.76449]
[1751997688974,0.6886,2616.0,2615.9,4.16624799]
[1751997689167,0.6886,2616.0,2615.9,4.80174799]
[1751997689568,1.4531,2616.0,2615.9,4.80174799]
[1751997690468,3.2078,2616.2,2616.1,0.76446]
[1751997690672,3.2078,2616.5,2616.2,0.76441]
[1751997690872,0.6886,2616.3,2616.2,0.76443]
[1751997691270,4.231,2616.8,2616.6,0.76429]
[1751997691576,0.76423,2616.9,2616.8,0.76423]
[1751997691770,0.6886,2616.9,2616.8,29.01823]
[1751997691969,2.07513308,2616.9,2616.8,29.01823]
[1751997692464,2.83936308,2616.9,2616.8,29.01823]
[1751997692669,2.07513308,2616.9,2616.8,29.01823]
[1751997692865,2.83936308,2616.9,2616.8,29.01823]
[1751997693067,2.07513308,2616.9,2616.8,29.01823]
[1751997693273,2.83936308,2616.9,2616.8,29.01823]
[1751997693776,2.83936308,2616.9,2616.8,0.76423]
[1751997694072,2.83936308,2616.9,2616.8,29.65773]
[1751997694271,2.83936308,2616.9,2616.8,29.02223]
[1751997694675,2.83936308,2616.9,2616.8,29.65773]
[1751997695873,0.76431,2616.7,2616.3,0.6772]
[1751997696170,3.97208,2616.8,2616.7,0.76427]
[1751997696376,3.97208,2616.8,2616.7,28.175]
[1751997696377,6.04793403,2616.8,2616.7,28.175]
[1751997696879,7.07113403,2616.8,2616.7,28.175]
[1751997697178,7.07113403,2616.8,2616.7,29.57479]
[1751997697375,7.07113403,2616.8,2616.7,28.93929]
[1751997697376,5.28365403,2616.8,2616.7,28.93929]
[1751997697572,0.76424,2616.9,2616.8,0.76426]
[1751997697772,0.76424,2616.9,2616.8,0.6355]
[1751997697773,1.45284,2616.9,2616.8,0.6355]
[1751997698079,0.76426,2616.8,2616.7,0.76427]
[1751997698273,2.84037957,2616.8,2616.7,28.91227]
[1751997698676,2.84037957,2616.8,2616.7,29.54777]
[1751997698876,1.45286,2616.8,2616.7,29.54777]
[1751997699078,1.45286,2616.8,2616.7,1.39977]
[1751997699379,1.45286,2616.8,2616.7,29.53577]
[1751997699672,3.62247,2616.8,2616.3,4.11349715]
[1751997699878,0.76437,2616.5,2616.4,0.76436]
[1751997700077,0.76437,2616.4,2616.3,0.6772]
[1751997700277,2.47617,2616.4,2616.3,0.6772]
[1751997700476,2.47617,2616.4,2616.3,30.1821]
[1751997700677,2.47617,2616.4,2616.3,29.5466]
[1751997700974,2.47617,2616.4,2616.3,29.5406]
[1751997701175,0.76437,2616.4,2616.3,29.5406]
[1751997701377,0.7644,2616.3,2616.2,0.76441]
[1751997701578,2.4762,2616.3,2616.2,28.088]
[1751997701779,3.773,2616.3,2616.2,28.088]
[1751997701975,3.773,2616.3,2616.2,28.7235]
[1751997702180,3.773,2616.3,2616.2,28.85243]
[1751997702680,3.773,2616.3,2616.2,29.48793]
[1751997702881,3.773,2616.3,2616.2,28.7235]
[1751997703374,1.453,2616.3,2616.2,29.48793]
[1751997703575,0.7644,2616.4,2616.3,0.7644]
[1751997703776,1.453,2616.4,2616.3,1.3999]
[1751997704282,1.453,2616.4,2616.3,0.7644]
[1751997704483,1.453,2616.4,2616.3,1.3999]
[1751997704878,1.453,2616.4,2616.3,0.7644]
[1751997705083,1.453,2616.4,2616.3,0.6355]
[1751997705383,1.453,2616.4,2616.3,1.3999]
[1751997705781,0.76437,2616.5,2616.4,0.76434]
[1751997705978,0.76437,2616.4,2616.3,0.76439]
[1751997706178,1.45297,2616.4,2616.3,1.39989]
[1751997706380,0.76437,2616.5,2616.4,0.76437]
[1751997706782,0.6886,2616.5,2616.4,32.80962799]
[1751997707183,0.76431,2616.7,2616.6,0.76429]
[1751997707385,1.38702766,2616.7,2616.6,29.39279]
[1751997707785,3.97207,2616.8,2616.7,0.76429]
[1751997707984,6.0481853,2616.8,2616.7,1.39979]
[1751997708487,3.2078,2616.8,2616.7,1.39979]
[1751997708684,3.2078,2616.8,2616.7,4.80154799]
[1751997708884,3.8964,2616.8,2616.7,4.80154799]
[1751997709984,3.2078,2616.8,2616.7,4.80154799]
[1751997711188,0.76422,2617.0,2616.9,0.76423]
[1751997711386,1.45102,2617.0,2616.9,28.75623]
[1751997712086,1.45102,2617.0,2616.9,29.40343]
[1751997712580,1.45102,2617.0,2616.9,28.75623]
[1751997712790,0.6868,2617.0,2616.9,29.40343]
[1751997713181,0.6868,2617.0,2616.9,28.75623]
[1751997713381,0.6868,2617.0,2616.9,29.40343]
[1751997713588,0.6868,2617.0,2616.9,28.75623]
[1751997713790,1.451,2617.0,2616.9,29.40343]
[1751997714090,0.6868,2617.0,2616.9,29.40343]
[1751997714286,1.451,2617.0,2616.9,29.40343]
[1751997714986,0.6868,2617.0,2616.9,29.40343]
[1751997715285,1.451,2617.0,2616.9,29.40343]
[1751997715690,0.6868,2617.0,2616.9,29.40343]
[1751997716383,1.451,2617.0,2616.9,29.40343]
[1751997720387,1.451,2617.0,2616.9,28.6392]
[1751997720687,2.4742,2617.0,2616.9,28.6322]
[1751997720892,1.451,2617.0,2616.9,29.39643]
[1751997721586,1.451,2617.0,2616.9,27.985]
[1751997721787,0.76426,2616.8,2616.7,0.76427]
[1751997721986,0.76429,2616.7,2616.6,0.7643]
[1751997722191,0.76432,2616.6,2616.5,11.52477514]
[1751997722387,1.45112,2616.6,2616.5,32.66872]
[1751997722587,1.45112,2616.6,2616.5,36.71767799]
[1751997722986,1.45112,2616.6,2616.5,34.95180937]
[1751997723991,0.76431,2616.7,2616.6,0.76432]
[1751997724193,0.76425,2616.9,2616.8,0.76423]
[1751997724400,0.76425,2616.9,2616.8,30.38211937]
[1751997724599,1.45105,2616.9,2616.8,30.38211937]
[1751997724893,0.6868,2616.9,2616.8,30.38211937]
[1751997725299,1.45103,2616.9,2616.8,30.38211937]
[1751997727697,3.2078,2617.1,2617.0,0.7642]
[1751997727894,0.6868,2617.1,2617.0,30.37808937]
[1751997728094,1.45097,2617.1,2617.0,30.37808937]
[1751997729392,1.45097,2617.1,2617.0,31.02528937]
[1751997729896,1.45097,2617.1,2616.8,1.3257]
[1751997729897,1.71,2617.1,2616.8,1.63588937]
[1751997730103,0.76423,2617.0,2616.9,28.7392]
[1751997730299,0.76423,2617.0,2616.9,30.37508937]
[1751997730497,0.76423,2617.0,2616.9,31.02228937]
[1751997730692,0.76423,2617.0,2616.9,30.37508937]
[1751997731300,1.45103,2617.0,2616.9,31.02228937]
[1751997732299,1.451,2617.0,2616.9,30.37508937]
[1751997732904,1.451,2617.0,2616.9,31.02228937]
[1751997733202,1.451,2617.0,2616.9,30.37508937]
[1751997733402,0.7642,2617.0,2616.9,30.37508937]
[1751997733609,1.451,2617.0,2616.9,31.02228937]
[1751997733809,2.3303,2617.3,2617.1,0.76414]
[1751997734010,3.09441,2617.3,2617.2,1.63588937]
[1751997734211,5.16765933,2617.3,2617.2,1.63588937]
[1751997735714,0.76414,2617.2,2617.1,27.969]
[1751997735907,0.76417,2617.1,2617.0,0.6675]
[1751997736115,0.76426,2616.8,2616.7,5.83647652]
[1751997736410,0.6868,2616.8,2616.7,34.45067652]
[1751997736611,1.45106,2616.8,2616.7,3.43629715]
[1751997736808,2.47426,2616.8,2616.7,31.40229715]
[1751997737010,2.47426,2616.8,2616.7,27.966]
[1751997737408,2.47426,2616.8,2616.7,28.6132]
[1751997737608,3.86187595,2616.8,2616.7,27.966]
[1751997738210,3.86187595,2616.8,2616.7,28.73029]
[1751997738517,3.86187595,2616.8,2616.7,27.966]
[1751997739213,3.86187595,2616.8,2616.7,28.6132]
[1751997740115,7.06967595,2616.8,2616.7,29.37549]
[1751997740815,7.06967595,2616.8,2616.7,1.41149]
[1751997741004,7.06967595,2616.8,2616.7,28.6092]
[1751997741315,7.03627595,2616.8,2616.7,28.72629]
[1751997741918,0.76429,2616.7,2616.6,4.20059715]
[1751997742111,2.44089,2616.7,2616.6,32.16159715]
[1751997742311,2.44089,2616.7,2616.6,29.3737]
[1751997742511,1.41769,2616.7,2616.6,29.3737]
[1751997742712,1.41769,2616.7,2616.6,28.7253]
[1751997742912,1.41769,2616.7,2616.6,29.3737]
[1751997743114,2.41579,2616.7,2616.6,29.3737]
[1751997743614,0.76432,2616.6,2616.5,3.43629715]
[1751997743813,2.41582,2616.6,2616.5,31.39329715]
[1751997744014,0.76437,2616.5,2616.4,0.76437]
[1751997744213,1.41777,2616.5,2616.4,28.72037]
[1751997744415,2.41587,2616.5,2616.4,28.72037]
[1751997744619,3.80495545,2616.5,2616.4,29.36877]
[1751997744918,0.7644,2616.3,2616.2,3.43629715]
[1751997745115,0.76446,2616.1,2616.0,3.43629715]
[1751997745317,0.76446,2616.1,2615.7,6.85995319]
[1751997745318,0.76452,2615.9,2615.8,31.39029715]
[1751997745620,0.76452,2615.9,2615.7,1.47677]
[1751997745621,1.6515,2615.9,2615.7,27.954]
[1751997745821,3.2404,2615.8,2615.5,27.955]
[1751997746015,1.41801,2615.6,2615.5,27.955]
[1751997746216,0.76461,2615.6,2615.5,28.71964]
[1751997746520,0.76456,2615.8,2615.7,0.76458]
[1751997746715,1.329,2616.1,2615.7,31.00286937]
[1751997746920,3.97226,2616.2,2616.1,0.76446]
[1751997747117,6.01061346,2616.2,2616.1,1.41286]
[1751997747312,4.62566,2616.2,2616.1,1.41286]
[1751997747515,4.62566,2616.2,2616.1,0.76446]
[1751997747719,4.62566,2616.2,2616.1,1.41286]
[1751997747921,3.8612,2616.2,2616.1,1.41286]
[1751997749116,0.76439,2616.4,2616.1,0.6484]
[1751997749316,3.2078,2616.5,2616.4,0.76437]
[1751997749317,3.97217,2616.5,2616.4,0.76437]